Cogmind - Beta 17 @@@ ROGUE MODE // 2026.07.08 @ 10:32:42 Player: woegarden Result: Destroyed by 32-70O(p) with EM Pulse Gun Performance ------------- Evolutions (0) 0 Regions Visited (3) 600 Robots Destroyed (10) 50 Value Destroyed (156) 156 Prototype IDs (6) 120 Alien Tech Used (0) 0 Bonus (800) 800 TOTAL SCORE: 1726 Bonus ------- Registered with UFD 300 Met Optimus in HQ 500 Cogmind --------- Core Integrity 0/250 Matter 190/300 Energy 275/275 System Corruption 1% Temperature Cool (0) Movement Rolling (100) Location -8/Scraptown Parts ------- > --- POWER (1) -------- Deuterium Engine > --- PROPULSION (2) --- Armored Wheel Subdweller Monowheel > --- UTILITY (2) ------ Small Storage Unit Improved Terrain Scanner > --- WEAPON (2) ------- Shock Rifle Improved Datajack > --- INVENTORY (8) ---- Light Nuclear Core Scrap Suit Machine Analyzer Terrain Scan Processor Improved Terrain Scan Processor Power Maul Botcube Peak State ------------ > --- POWER ------------ Fusion Compressor > --- PROPULSION ------- Armored Wheel Subdweller Monowheel > --- UTILITY ---------- Small Storage Unit Improved Terrain Scanner > --- WEAPON ----------- Improved Datajack CPS Tube > --- INVENTORY -------- Wheel Wheel Machine Analyzer Subdweller Optics Terrain Scan Processor Makeshift Hammer Power Maul Botcube [Rating: 21] Favorites ----------- Power Light Angular Momentum Engine Engine Light Angular Momentum Engine Power Core Fusion Compressor Propulsion Subdweller Monowheel Leg Aluminum Leg Wheel Subdweller Monowheel Utility Small Storage Unit Device Improved Terrain Scanner Storage Small Storage Unit Weapon Improved Datajack Energy Gun Salvaging Laser Ballistic Gun Assault Rifle Special Weapon CPS Tube Special Melee Weapon Improved Datajack Build | -11 -10 -10 -8 ------- Run | Yrd Mat Sub Scr Slots Evolved . | . . . . Power . | . . . . Propulsion . | . . . . Utility . | . . . . Weapon . | . . . . Parts Attached 28 | 3 . 16 9 Power 7 | . . 3 4 Engine 6 | . . 3 3 Core 1 | . . . 1 Reactor . | . . . . Propulsion 10 | 2 . 6 2 Treads . | . . . . Leg 2 | . . 2 . Wheel 8 | 2 . 4 2 Hover . | . . . . Flight . | . . . . Utility 2 | 1 . 1 . Device 2 | 1 . 1 . Storage . | . . . . Processor . | . . . . Hackware . | . . . . Protection . | . . . . Artifact . | . . . . Weapon 9 | . . 6 3 Energy Gun 5 | . . 4 1 Energy Cannon . | . . . . Ballistic Gun 2 | . . 2 . Ballistic Cannon . | . . . . Launcher . | . . . . Special Weapon 1 | . . . 1 Impact Weapon . | . . . . Slashing Weapon . | . . . . Piercing Weapon . | . . . . Special Melee Weapon 1 | . . . 1 Unidentified Prototypes . | . . . . Parts Lost 6 | . . 6 . Power 1 | . . 1 . Propulsion 2 | . . 2 . Utility . | . . . . Weapon 3 | . . 3 . Highest Loss Streak 2 | . . 2 . To Critical Strikes . | . . . . Average Backups 7 | 7 8 7 7 Power . | 1 1 . . Propulsion 2 | 4 5 2 1 Utility 2 | . 1 1 2 Weapon 2 | 1 1 2 3 Tool/Special . | . . . . Unused Backups 21 | 8 . 4 9 Power 2 | 1 . . 1 Propulsion 7 | 4 . 3 . Utility 6 | 1 . . 5 Weapon 6 | 2 . 1 3 Tool/Special . | . . . . Average Slot Usage (%) 92 | . 100 94 90 Engine 11 | . 14 13 9 Core 2 | . . . 4 Wheel 26 | . 28 23 28 Device 14 | . 14 14 14 Storage 14 | . 14 14 14 Energy Gun 2 | . . 4 . Ballistic Gun 8 | . 28 19 . Special Weapon 2 | . . . 4 Special Melee Weapon 8 | . . . 13 Peak Build Rating 21 | 10 10 15 21 Average Rating 15 | 7 10 12 17 On Entrance 9 | 6 10 10 12 Avg Prop Armor Cover (%) . | . . . . Naked Turns . | . . . . Heaviest Build 19 | 14 14 19 19 Greatest Support 36 | 20 20 36 36 Greatest Overweight (x) 1 | . . 1 . Average Overweight (x) . | . . . . Largest Inventory Capacity 8 | 8 8 8 8 Average Capacity 8 | 8 8 8 8 Most Carried 8 | 8 8 8 8 Average Carried 7 | 7 8 7 7 Final Capacity 8 | 8 8 8 8 Final Carried 8 | 8 8 8 8 Class Distribution -------------------- 88% | Mutant 8% | Scavenger-Mutant 3% | Derelict-Mutant Dominant Class ---------------- Mutant | -10/Materials Mutant | -10/Subcaves Mutant | -8/Scraptown Resources | -11 -10 -10 -8 ----------- Run | Yrd Mat Sub Scr Matter Collected 804 | 290 . 249 265 Remotely . | . . . . Salvage Created 371 | 222 . 149 . Parts 25 | 18 . 7 . Haulers Intercepted . | . . . . Recyclers Shooed . | . . . . Parts Field Recycled . | . . . . Retrieved Matter . | . . . . Parts Self-Destructed 5 | . . 5 . Prevented . | . . . . Parts Restored . | . . . . Kills | -11 -10 -10 -8 ------- Run | Yrd Mat Sub Scr Combat Hostiles Destroyed 3 | . . 3 . Guns 3 | . . 3 . Classes Destroyed 4 | 3 . 1 . Worker 2 | 2 . . . Tunneler 4 | 4 . . . Recycler 1 | 1 . . . Subdweller 3 | . . 3 . Best Kill Streak 3 | 3 . 1 . Combat Bots Only 1 | . . 1 . Max Kills in Single Turn 1 | 1 . 1 . Gunslinging . | . . . . Exploded . | . . . . Melee . | . . . . Uniques/NPCs Destroyed . | . . . . Combat | -11 -10 -10 -8 -------- Run | Yrd Mat Sub Scr Hostile Shots Fired 76 | . . 56 20 Missed 23 | . . 18 5 Hits 53 | . . 38 15 Projectile 53 | . . 38 15 Damage Taken 971 | . . 787 184 Core 255 | . . 208 47 Absorbed by Shields . | . . . . Core Remaining (%) 100 | 100 . . . Volleys Fired 43 | 15 . 27 1 Largest 2 | 2 . 2 1 Hottest 90 | 40 . 90 50 Shots Fired 79 | 30 . 48 1 Gun 79 | 30 . 48 1 Cannon . | . . . . Launcher . | . . . . Special . | . . . . Kinetic 63 | 30 . 33 . Thermal 15 | . . 15 . Explosive . | . . . . Electromagnetic 1 | . . . 1 Robot Hit Streak 18 | 8 . 18 1 Robot Miss Streak 2 | 1 . 2 . Penetration Max . | . . . . Secondary Targets . | . . . . Shots Hit Robots 56 | 20 . 35 1 Core Hits 20 | 10 . 9 1 Critical Kills . | . . . . Critical Parts Destroyed . | . . . . Critical Strikes . | . . . . Melee Attacks . | . . . . Impact . | . . . . Slashing . | . . . . Piercing . | . . . . Sneak Attacks . | . . . . Combat Hostiles . | . . . . Follow-up Attacks . | . . . . Damage Inflicted 750 | 212 . 531 7 Guns 750 | 212 . 531 7 Cannons . | . . . . Explosions . | . . . . Melee . | . . . . Ramming . | . . . . Kinetic 639 | 212 . 427 . Thermal 104 | . . 104 . Explosive . | . . . . Electromagnetic 7 | . . . 7 Impact . | . . . . Slashing . | . . . . Piercing . | . . . . Highest Corruption 1 | . . . 1 Average Corruption 1 | . . . 1 Corruption Purged . | . . . . Corruption Blocked . | . . . . Overload Shots . | . . . . Overflow Damage . | . . . . Projectiles . | . . . . Explosions . | . . . . Melee . | . . . . Knockbacks . | . . . . Impact . | . . . . Kinetic . | . . . . Secondary . | . . . . Self-Inflicted Damage . | . . . . Shots . | . . . . Rammed . | . . . . Targets Rammed . | . . . . Kicked . | . . . . Crushed . | . . . . Highest Temperature 12 | . . . 12 Average Temperature 9 | . . . 9 Received Heat Transfer 150 | . . 138 12 Siege Activations . | . . . . Martial Activations . | . . . . Shielding Activations . | . . . . Robots Disrupted . | . . . . Combat Hostiles . | . . . . Robots Corrupted . | . . . . Combat Hostiles . | . . . . Parts Fried . | . . . . Impact Corruptions . | . . . . Robots Melted . | . . . . Combat Hostiles . | . . . . Parts Melted 2 | . . 2 . Heat Transferred 175 | . . 175 . Parts Sabotaged . | . . . . Parts Stolen . | . . . . Parts Stripped . | . . . . Power Chain Reactions . | . . . . Alert | -11 -10 -10 -8 ------- Run | Yrd Mat Sub Scr Maximum Alert Level . | . . . . Low Security (%) 100 | 100 100 . . Level 1 . | . . . . Level 2 . | . . . . Level 3 . | . . . . Level 4 . | . . . . Level 5 . | . . . . High Security . | . . . . Max Security . | . . . . Peak Influence 5 | 5 3 . . Initial 3 | . 3 . . Average 1 | 1 . . . Influence Increases 35 | 35 . . . Destroy 0b10 Robot/NC 35 | 35 . . . Influence Decreases 35 | 30 5 . . Entered New Map 2 | . 2 . . Time Decay 33 | 30 3 . . Squads Dispatched . | . . . . Investigation . | . . . . Extermination . | . . . . Reinforcement . | . . . . Assault . | . . . . Garrison . | . . . . Intercept . | . . . . Searches Triggered . | . . . . Construction Impeded . | . . . . Haulers Reinforced . | . . . . Active Scanning Responses . | . . . . Cargo Convoy Interrupts . | . . . . Stealth | -11 -10 -10 -8 --------- Run | Yrd Mat Sub Scr Distress Signals . | . . . . Communications Jammed . | . . . . Distress Signals . | . . . . Times Spotted 15 | . 1 8 6 Peak Tracking Total 2 | . 1 2 2 Tactical Retreats 1 | . . 1 . Traps | -11 -10 -10 -8 ------- Run | Yrd Mat Sub Scr Traps Triggered . | . . . . Indirectly . | . . . . Trap Hack Attempts . | . . . . Triggered . | . . . . Disarmed . | . . . . Reprogrammed . | . . . . Reused . | . . . . Traps Extracted . | . . . . Installed . | . . . . Triggered . | . . . . Machines | -11 -10 -10 -8 ---------- Run | Yrd Mat Sub Scr Machines Disabled . | . . . . Max in Single Turn . | . . . . Machines Repaired . | . . . . Machines Dismantled . | . . . . Machines Sabotaged . | . . . . Overloaded Fab Kills . | . . . . Hacking | -11 -10 -10 -8 --------- Run | Yrd Mat Sub Scr Machines Accessed 11 | . . . 11 Terminals . | . . . . Fabricators . | . . . . Repair Stations . | . . . . Recycling Units . | . . . . Scanalyzers . | . . . . Garrison Access . | . . . . Total Hacks 71 | . . . 71 Successful 71 | . . . 71 Failed . | . . . . Catastrophic . | . . . . Database Lockouts . | . . . . Manual . | . . . . Terminals . | . . . . Fabricators . | . . . . Repair Stations . | . . . . Recycling Units . | . . . . Scanalyzers . | . . . . Garrison Access . | . . . . Terminal Hacks 71 | . . . 71 Record 70 | . . . 70 Proto ID Catalog 1 | . . . 1 Fabricator Hacks . | . . . . Repair Station Hacks . | . . . . Recycling Unit Hacks . | . . . . Scanalyzer . | . . . . Garrison Access Hacks . | . . . . Unauthorized Hacks . | . . . . Terminals . | . . . . Fabricators . | . . . . Repair Stations . | . . . . Recycling Units . | . . . . Scanalyzers . | . . . . Garrison Access . | . . . . Data Cores Recovered . | . . . . Used . | . . . . Hacking Detections . | . . . . Full Trace Events . | . . . . Feedback Events . | . . . . Feedback Blocked . | . . . . Robot Schematics Acquired . | . . . . Robots Built . | . . . . Authchips . | . . . . Time . | . . . . Total Robot Build Rating . | . . . . Part Schematics Acquired . | . . . . Parts Built . | . . . . Authchips . | . . . . Time . | . . . . Total Part Build Rating . | . . . . Part Studies Acquired . | . . . . Parts Repaired . | . . . . Time . | . . . . Parts Recycled . | . . . . Recycled Matter . | . . . . Retrieved Matter . | . . . . Retrieved Components . | . . . . Parts Scanalyzed . | . . . . Part Schematics Acquired . | . . . . Parts Damaged . | . . . . Bothacking | -11 -10 -10 -8 ------------ Run | Yrd Mat Sub Scr Used RIF Installer . | . . . . Robots Hacked . | . . . . Non-combat . | . . . . Combat . | . . . . Robot Hacks Applied . | . . . . Relay Couplers Released . | . . . . Fabnet Peak Effective % . | . . . . Robots Rewired . | . . . . Allies Hacked . | . . . . Hacks Repelled . | . . . . Allies | -11 -10 -10 -8 -------- Run | Yrd Mat Sub Scr Total Allies . | . . . . Largest Group . | . . . . Highest-Rated Group . | . . . . Highest-Rated Ally . | . . . . Total Orders . | . . . . Ally Attacks . | . . . . Total Damage . | . . . . Kills . | . . . . Allies Corrupted . | . . . . Allies Melted 1 | . . . 1 Intel | -11 -10 -10 -8 ------- Run | Yrd Mat Sub Scr Active Infowar (turns) 2338 | 37 101 820 1380 Terrain 2338 | 37 101 820 1380 Robot Analysis Total . | . . . . Derelict Logs Recovered 2 | . . . 2 Drone Launches . | . . . . Drone Recoveries . | . . . . Exploration | -11 -10 -10 -8 ------------- Run | Yrd Mat Sub Scr Turns Passed 2431 | 130 101 820 1380 Spaces Moved 2114 | 84 80 609 1341 Core . | . . . . Treads . | . . . . Legs 76 | 31 . 45 . Wheels 2038 | 53 80 564 1341 Hover . | . . . . Flight . | . . . . Fastest Speed 80 | 80 80 80 95 Average Speed 97 | 94 80 95 99 Slowest Speed 120 | 120 80 120 105 Overloaded Moves . | . . . . Propulsion Burnouts . | . . . . Robots Hopped . | . . . . Potential Cave-ins . | . . . . Cave-ins Triggered . | . . . . Exploration Rate (%) 33 | 5 12 33 83 Regions Visited 3 Branch Regions 2 Pre-discovered Areas 1 | . . . 1 Known Exits Taken . | . . . . Unknown Exits Taken 3 | 1 1 1 . Scrap Searched 6 | . . 2 4 Spaces Dug . | . . . . Terrain Destroyed . | . . . . Melee . | . . . . Projectile . | . . . . AOE . | . . . . Terrain Rammed . | . . . . Walls Destroyed . | . . . . Machines Disabled . | . . . . Actions | -11 -10 -10 -8 --------- Run | Yrd Mat Sub Scr Total 2418 | 111 116 804 1387 Wait 172 | . 37 127 8 Move 2111 | 83 79 608 1341 Hop . | . . . . Pick Up 25 | 6 . 11 8 Fast Attach 6 | 1 . 3 2 Attach 6 | 2 . 3 1 Detach 2 | . . . 2 Swap 22 | . . 14 8 Drop 30 | 4 . 11 15 Fire 43 | 15 . 27 1 Melee . | . . . . Ram . | . . . . Kick . | . . . . Crush . | . . . . Escape Stasis . | . . . . Rewire 1 | . . . 1 Trap . | . . . . Miscellaneous . | . . . . Route ------- -11/Scrapyard -10/Materials -10/Subcaves (discovered 2 exits: [*Mat] / *Scr) -8/Scraptown (discovered 1 exit: [*Fac]) History --------- Turn | Location | Event 15 | -11/Scrapyard | Discovered new exit (range 3) 131 | -11/Scrapyard | Entered Materials 132 | -10/Materials | Met a group of wandering Federalists 188 | -10/Materials | Discovered new exit (range 9) 232 | -10/Materials | Entered Subcaves 233 | -10/Subcaves | Continued accompanying wandering Federalists (6) 303 | -10/Subcaves | Build established: Mutant 327 | -10/Subcaves | Lost 4 allies 487 | -10/Subcaves | Shifting Twisted Machinery released Sub. Machine Gun 489 | -10/Subcaves | Shifting Twisted Machinery released Battle Rifle 756 | -10/Subcaves | Shifting Twisted Machinery released Sub. Laser 759 | -10/Subcaves | Shifting Twisted Machinery released Battle Cannon 834 | -10/Subcaves | Core integrity fell below 50% 950 | -10/Subcaves | Core integrity fell below 20% 990 | -10/Subcaves | Discovered new exit (range 9) 1052 | -10/Subcaves | Entered Scraptown 1369 | -8/Scraptown | Scanned Subdweller tech in exchange for log data 1372 | -8/Scraptown | Learned Research interactive machine intel 1373 | -8/Scraptown | Learned Factory terminal intel 1388 | -8/Scraptown | Discovered new exit (range 5) 1472 | -8/Scraptown | Visited Comm Corps 1524 | -8/Scraptown | Visited IN-MT5's Study 1562 | -8/Scraptown | Learned location of Extension (-5) 1587 | -8/Scraptown | Heard Great Nut preacher, LISTEN AND RECITE! 1640 | -8/Scraptown | Visited Cyclists 1664 | -8/Scraptown | Visited Cave Peace 1704 | -8/Scraptown | Visited UFD Registry 1704 | -8/Scraptown | Registered with UFD as "Zeroroller" 1750 | -8/Scraptown | Entered Cyclist Reading Room 1803 | -8/Scraptown | Visited Shadow of the Wyrm 1824 | -8/Scraptown | Visited Symbiants 2054 | -8/Scraptown | Visited Botcube Research 2066 | -8/Scraptown | Found Botcube 2084 | -8/Scraptown | Visited Abandonware Association 2107 | -8/Scraptown | Learned abandonware demo "MELTYB.EXE" 2129 | -8/Scraptown | Visited LU-1G1's Boring Crew 2229 | -8/Scraptown | Met Optimus 2229 | -8/Scraptown | Accepted into 0bPrime 2274 | -8/Scraptown | Visited DA-N13 Charitable Foundation 2281 | -8/Scraptown | Found DCF Scrap (29 items) 2312 | -8/Scraptown | Visited Science Guys 2394 | -8/Scraptown | Civil war broke out across Scraptown 2406 | -8/Scraptown | Found Scrap Suit 2432 | -8/Scraptown | Destroyed by 32-70O(p) with EM Pulse Gun Last Messages --------------- 02396_ Machine disabled. 02396_ Slug penetrates L8-GGF(g). 02398_ Optimus: "No holds barred, if they're hostile, they are an enemy of the people and we must shoot to kill. Collateral damage is to be expected!" 02398_ Machine disabled. 02398_ Slug penetrates HX-G22(j). 02398_ Machine disabled. 02400_ HX-G22(j) destroyed. 02400_ Slug penetrates Machine. 02403_ Acquired 70 matter. 02405_ Dropped Arm. Wheel. 02406_ Dropped Sub. Optics. 02406_ Acquired Scrap Suit. 02407_ N3-D38(j) suffers critical hit (Destroy). 02407_ Slug penetrates N3-D38(j). 02407_ Slug penetrates MO-F2R(c). 02409_ LE-WGW(j) destroyed. 02428_ 32-70O(p) misfires. Map ----- +----------------------------------------------------+ | #????????????????????????????????????????????? | | #???#????????????????????????????????????????? | | #####????????????????????????????????????????????? | | #????????????????????????????????????????????????? | | #????????????????????????????????????????????????? | | #?#??????????????????????????????????????????????? | | #????????????????????????????????????????????????? | | #??????????#?????????????????????????????????????? | | ???????????????????????????????????????????#?????? | | ??#?????????????????????"??#???#####??????? ""???? | | ??????????????????????????????? " "?????? "???? | | ?????????????????????????????? ##?#??" ???? | | ####?????????#????????????????? ?????" ??? | | # #???????????????????????????!* #?#?"" ??? | | " ##???#?????????????????????"%== #?? " """? | | "#???????????????????????"" "*![! #?? """# | | #????????????"???????????"""%[[%[#???" """# | | #??????#??????x??????????? !! = ????? " ? | | #??????????????=??????????? [ ??????? ?? | | #??????????????? ???????????*%[? ??????? ??? | | #???????????????# ??????????#=#?????????# #??# | | #########???????##### ########### ########### #### | | #???????#"""" """"""""""" " " """ "" " | | #???????#" p = | | #???????#" ! | | #???#???#" @ | | #???????#" p | | #???????#" | | #?????""" """"""""""""""""""""""""""" | | #??????"" """"""""""""""""""""""""""" | | #??????"" ""###### ################" | | #??????"" ""# ##????????#" | | #??????"" [ ""# X"#???#????#" | | ###?#??"" !% ""# "" "" ##???????##" | | ""#"#??"" ""# "" "" X"#??????###" | | """"#??"" ""# " " ######### #" | | ""#?????#" "" "" | | ###?????#" "" "" | | #########" ""# " " ######### #" | | ""# "" "" ""##??#??###" | | ""# "" "" ###?#??#??#" | | ""# X"#?#????###" | | ""# ##?##??#??#" | | ""###### ################" | | """"""""""""""""""""""""""" | | """"""""""""""""""""""""""" | | | | | | | | #""""#" | +----------------------------------------------------+ Best States ------------- Heat Dissipation 25 Energy Generation 25 Energy Capacity 275 Matter Stores 300 Matter Capacity 300 Sight Range 16 Terrain Scan Range 16 Terrain Scan Density 10 Evasion (%) 55 Item Schematics ----------------- None Robot Schematics ------------------ None Fabricated ------------ Nothing Repaired ---------- Nothing Studied --------- None Alien Tech Used ----------------- None Achievements -------------- Bob, First Of His Name Civilization 2243 Link The Feds Strength In Numbers Challenges ------------ None Game ------ Seed MobileNullWartreads Manual? 0 Play Time 00:51:53 Cumulative 113.0 hours Start 2026.07.08 @ 09:29:08 End 2026.07.08 @ 10:32:42 Sessions 1 Manual Loads 0 Difficulty Rogue Special Mode None Game No. 196 Rogue 150 Adventurer 45 Explorer 1 Win Type - Total 0 Types 0/0/0/0/0/0/0/0/0/0 Lore% 27 Gallery% 40 Achievement% 23 Wizard Run 0 Options --------- Layout 1 ASCII 0 Keyboard 0 Movement Mouse Keybinds 0 Fullscreen 1 Font 32/SmallcapsGlow Map View 50x40 Zoom Use 0% Tactical HUD 1 Map Filters NONE Filters LOW_CONTRAST(13,24,33)|BRIGHTNESS(90)|SATURATION(87) Steam 1 RUN: 880c7089-dacd-46e9-bd12-db356080a2ff